Workbook

Sheet Results by County
A1: CountyName | B1: Precincts | C1: Romney | E1: Obama | G1: Stevens | H1: Johnson | I1: Goode | J1: Stein | K1: Barnett | L1: Alexander | M1: Lindsay | N1: Barr | O1: Hoefling | P1: Anderson | Q1: Byrne | R1: Coniglio | S1: Duncan | T1: Durham | U1: Magee | V1: Reed
A2: Alachua | B2: 63 | C2: 48797 | D2: =C2/W2 -> 0.4052301151 | E2: 69699 | F2: =E2/W2 -> 0.578808816 | G2: 46 | H2: 1306 | I2: 43 | J2: 344 | K2: 11 | L2: 22 | M2: 4 | N2: 102 | O2: 16 | P2: 27 | Q2: 0 | R2: 0 | S2: 0 | T2: 0 | U2: 0 | V2: 1 | W2: 120418
A3: Baker | B3: 9 | C3: 8975 | D3: =C3/W3 -> 0.7894968332 | E3: 2311 | F3: =E3/W3 -> 0.2032899367 | G3: 8 | H3: 41 | I3: 3 | J3: 6 | K3: 0 | L3: 1 | M3: 1 | N3: 14 | O3: 5 | P3: 3 | Q3: 0 | R3: 0 | S3: 0 | T3: 0 | U3: 0 | V3: 0 | W3: 11368
A4: Bay | B4: 44 | C4: 56876 | D4: 0.7121874257 | E4: 22051 | F4: 0.2761172537 | G4: 48 | H4: 573 | I4: 25 | J4: 123 | K4: 12 | L4: 3 | M4: 4 | N4: 114 | O4: 11 | P4: 21 | Q4: 0 | R4: 0 | S4: 0 | T4: 0 | U4: 0 | V4: 0 | W4: 79861
A5: Bradford | B5: 14 | C5: 8219 | D5: 0.7064030941 | E5: 3325 | F5: 0.2857756768 | G5: 7 | H5: 39 | I5: 4 | J5: 14 | K5: 2 | L5: 1 | M5: 0 | N5: 15 | O5: 2 | P5: 7 | Q5: 0 | R5: 0 | S5: 0 | T5: 0 | U5: 0 | V5: 0 | W5: 11635
A6: Brevard | B6: 166 | C6: 159300 | D6: 0.5578531932 | E6: 122993 | F6: 0.4307095907 | G6: 164 | H6: 1974 | I6: 129 | J6: 388 | K6: 34 | L6: 26 | M6: 14 | N6: 412 | O6: 50 | P6: 75 | Q6: 0 | R6: 0 | S6: 0 | T6: 0 | U6: 0 | V6: 0 | W6: 285559
A7: Broward | B7: 792 | C7: 244101 | D7: 0.3227047865 | E7: 508312 | F7: 0.6719952619 | G7: 235 | H7: 2372 | I7: 132 | J7: 574 | K7: 58 | L7: 77 | M7: 26 | N7: 385 | O7: 46 | P7: 104 | Q7: 0 | R7: 0 | S7: 0 | T7: 0 | U7: 0 | V7: 0 | W7: 756422
A8: Calhoun | B8: 15 | C8: 4366 | D8: 0.7096879064 | E8: 1664 | F8: 0.2704811443 | G8: 13 | H8: 48 | I8: 5 | J8: 8 | K8: 4 | L8: 1 | M8: 1 | N8: 33 | O8: 3 | P8: 6 | Q8: 0 | R8: 0 | S8: 0 | T8: 0 | U8: 0 | V8: 0 | W8: 6152
A9: Charlotte | B9: 79 | C9: 47996 | D9: 0.5667792447 | E9: 35906 | F9: 0.424009825 | G9: 63 | H9: 411 | I9: 28 | J9: 108 | K9: 4 | L9: 9 | M9: 2 | N9: 128 | O9: 11 | P9: 16 | Q9: 0 | R9: 0 | S9: 0 | T9: 0 | U9: 0 | V9: 0 | W9: 84682
A10: Citrus | B10: 31 | C10: 44662 | D10: 0.6040711436 | E10: 28460 | F10: 0.3849327112 | G10: 72 | H10: 424 | I10: 32 | J10: 85 | K10: 9 | L10: 8 | M10: 0 | N10: 152 | O10: 11 | P10: 20 | Q10: 0 | R10: 0 | S10: 0 | T10: 0 | U10: 0 | V10: 0 | W10: 73935
A11: Clay | B11: 48 | C11: 70022 | D11: 0.7249479754 | E11: 25759 | F11: 0.2666866827 | G11: 54 | H11: 506 | I11: 25 | J11: 79 | K11: 11 | L11: 6 | M11: 3 | N11: 96 | O11: 14 | P11: 14 | Q11: 0 | R11: 0 | S11: 0 | T11: 0 | U11: 0 | V11: 0 | W11: 96589
A12: Collier | B12: 62 | C12: 96520 | D12: 0.6472986748 | E12: 51698 | F12: 0.3467058319 | G12: 34 | H12: 604 | I12: 32 | J12: 111 | K12: 10 | L12: 5 | M12: 7 | N12: 68 | O12: 5 | P12: 18 | Q12: 0 | R12: 0 | S12: 0 | T12: 0 | U12: 0 | V12: 0 | W12: 149112
A13: Columbia | B13: 23 | C13: 18429 | D13: 0.6784596694 | E13: 8462 | F13: 0.3115267091 | G13: 22 | H13: 143 | I13: 12 | J13: 35 | K13: 3 | L13: 1 | M13: 2 | N13: 43 | O13: 6 | P13: 5 | Q13: 0 | R13: 0 | S13: 0 | T13: 0 | U13: 0 | V13: 0 | W13: 27163
A14: Desoto | B14: 15 | C14: 5587 | D14: 0.5663456665 | E14: 4174 | F14: 0.4231120122 | G14: 9 | H14: 48 | I14: 4 | J14: 13 | K14: 2 | L14: 0 | M14: 1 | N14: 19 | O14: 3 | P14: 3 | Q14: 0 | R14: 0 | S14: 0 | T14: 2 | U14: 0 | V14: 0 | W14: 9865
A15: Dixie | B15: 10 | C15: 5052 | D15: 0.7278490131 | E15: 1798 | F15: 0.2590404841 | G15: 11 | H15: 27 | I15: 2 | J15: 11 | K15: 0 | L15: 0 | M15: 0 | N15: 32 | O15: 2 | P15: 6 | Q15: 0 | R15: 0 | S15: 0 | T15: 0 | U15: 0 | V15: 0 | W15: 6941
A16: Duval | B16: 197 | C16: 211615 | D16: 0.5138182048 | E16: 196737 | F16: 0.4776932266 | G16: 164 | H16: 2325 | I16: 133 | J16: 398 | K16: 42 | L16: 24 | M16: 15 | N16: 275 | O16: 51 | P16: 68 | Q16: 0 | R16: 0 | S16: 0 | T16: 0 | U16: 0 | V16: 1 | W16: 411848
A17: Escambia | B17: 79 | C17: 88711 | D17: 0.597372426 | E17: 58185 | F17: 0.3918129049 | G17: 69 | H17: 1005 | I17: 115 | J17: 148 | K17: 18 | L17: 15 | M17: 4 | N17: 175 | O17: 30 | P17: 27 | Q17: 0 | R17: 0 | S17: 0 | T17: 0 | U17: 0 | V17: 0 | W17: 148502
A18: Flagler | B18: 30 | C18: 26969 | D18: 0.5330368613 | E18: 23207 | F18: 0.4586816879 | G18: 24 | H18: 252 | I18: 18 | J18: 45 | K18: 2 | L18: 3 | M18: 2 | N18: 61 | O18: 5 | P18: 7 | Q18: 0 | R18: 0 | S18: 0 | T18: 0 | U18: 0 | V18: 0 | W18: 50595
A19: Franklin | B19: 8 | C19: 3570 | D19: 0.652173913 | E19: 1845 | F19: 0.3370478626 | G19: 7 | H19: 19 | I19: 4 | J19: 8 | K19: 0 | L19: 0 | M19: 0 | N19: 15 | O19: 1 | P19: 5 | Q19: 0 | R19: 0 | S19: 0 | T19: 0 | U19: 0 | V19: 0 | W19: 5474
A20: Gadsden | B20: 25 | C20: 6630 | D20: 0.2946797635 | E20: 15770 | F20: 0.7009200409 | G20: 10 | H20: 54 | I20: 2 | J20: 8 | K20: 3 | L20: 2 | M20: 1 | N20: 14 | O20: 1 | P20: 4 | Q20: 0 | R20: 0 | S20: 0 | T20: 0 | U20: 0 | V20: 0 | W20: 22499
A21: Gilchrist | B21: 10 | C21: 5917 | D21: 0.748135036 | E21: 1885 | F21: 0.2383360728 | G21: 13 | H21: 58 | I21: 1 | J21: 5 | K21: 0 | L21: 2 | M21: 0 | N21: 20 | O21: 5 | P21: 2 | Q21: 0 | R21: 0 | S21: 0 | T21: 0 | U21: 0 | V21: 1 | W21: 7909
A22: Glades | B22: 13 | C22: 2344 | D22: 0.5876159438 | E22: 1603 | F22: 0.4018551015 | G22: 4 | H22: 11 | I22: 0 | J22: 7 | K22: 0 | L22: 0 | M22: 0 | N22: 14 | O22: 6 | P22: 0 | Q22: 0 | R22: 0 | S22: 0 | T22: 0 | U22: 0 | V22: 0 | W22: 3989
A23: Gulf | B23: 9 | C23: 4995 | D23: 0.7027293191 | E23: 2014 | F23: 0.2833427124 | G23: 6 | H23: 40 | I23: 4 | J23: 15 | K23: 1 | L23: 1 | M23: 1 | N23: 28 | O23: 1 | P23: 2 | Q23: 0 | R23: 0 | S23: 0 | T23: 0 | U23: 0 | V23: 0 | W23: 7108
A24: Hamilton | B24: 8 | C24: 3138 | D24: 0.5803587942 | E24: 2228 | F24: 0.4120584428 | G24: 5 | H24: 14 | I24: 3 | J24: 5 | K24: 2 | L24: 1 | M24: 0 | N24: 8 | O24: 2 | P24: 1 | Q24: 0 | R24: 0 | S24: 0 | T24: 0 | U24: 0 | V24: 0 | W24: 5407
A25: Hardee | B25: 12 | C25: 4696 | D25: 0.6498754498 | E25: 2463 | F25: 0.3408524772 | G25: 5 | H25: 38 | I25: 5 | J25: 4 | K25: 0 | L25: 1 | M25: 0 | N25: 11 | O25: 1 | P25: 2 | Q25: 0 | R25: 0 | S25: 0 | T25: 0 | U25: 0 | V25: 0 | W25: 7226
A26: Hendry | B26: 10 | C26: 5355 | D26: 0.5257731959 | E26: 4751 | F26: 0.4664702995 | G26: 10 | H26: 32 | I26: 4 | J26: 7 | K26: 2 | L26: 2 | M26: 0 | N26: 18 | O26: 1 | P26: 3 | Q26: 0 | R26: 0 | S26: 0 | T26: 0 | U26: 0 | V26: 0 | W26: 10185
A27: Hernando | B27: 39 | C27: 44938 | D27: 0.5371054299 | E27: 37830 | F27: 0.452149593 | G27: 70 | H27: 488 | I27: 35 | J27: 93 | K27: 10 | L27: 6 | M27: 3 | N27: 165 | O27: 15 | P27: 14 | Q27: 0 | R27: 0 | S27: 0 | T27: 0 | U27: 0 | V27: 0 | W27: 83667
A28: Highlands | B28: 25 | C28: 25915 | D28: 0.6105692206 | E28: 16148 | F28: 0.3804542456 | G28: 40 | H28: 195 | I28: 19 | J28: 36 | K28: 6 | L28: 5 | M28: 0 | N28: 58 | O28: 7 | P28: 15 | Q28: 0 | R28: 0 | S28: 0 | T28: 0 | U28: 0 | V28: 0 | W28: 42444
A29: Hillsborough | B29: 347 | C29: 250186 | D29: 0.4615109334 | E29: 286467 | F29: 0.5284374527 | G29: 254 | H29: 3448 | I29: 177 | J29: 681 | K29: 56 | L29: 71 | M29: 19 | N29: 531 | O29: 56 | P29: 156 | Q29: 0 | R29: 0 | S29: 0 | T29: 0 | U29: 0 | V29: 0 | W29: 542102
A30: Holmes | B30: 8 | C30: 6919 | D30: 0.836233986 | E30: 1264 | F30: 0.1527677061 | G30: 8 | H30: 34 | I30: 6 | J30: 6 | K30: 5 | L30: 0 | M30: 1 | N30: 25 | O30: 1 | P30: 5 | Q30: 0 | R30: 0 | S30: 0 | T30: 0 | U30: 0 | V30: 0 | W30: 8274
A31: Indian River | B31: 37 | C31: 43450 | D31: 0.6079984328 | E31: 27492 | F31: 0.3846971902 | G31: 35 | H31: 329 | I31: 18 | J31: 58 | K31: 4 | L31: 5 | M31: 0 | N31: 49 | O31: 7 | P31: 17 | Q31: 0 | R31: 0 | S31: 0 | T31: 0 | U31: 0 | V31: 0 | W31: 71464
A32: Jackson | B32: 14 | C32: 13418 | D32: 0.6407525906 | E32: 7342 | F32: 0.3506040781 | G32: 27 | H32: 79 | I32: 11 | J32: 12 | K32: 9 | L32: 2 | M32: 1 | N32: 36 | O32: 2 | P32: 2 | Q32: 0 | R32: 0 | S32: 0 | T32: 0 | U32: 0 | V32: 0 | W32: 20941
A33: Jefferson | B33: 15 | C33: 3808 | D33: 0.487704918 | E33: 3945 | F33: 0.5052510246 | G33: 2 | H33: 28 | I33: 6 | J33: 9 | K33: 0 | L33: 1 | M33: 0 | N33: 6 | O33: 0 | P33: 3 | Q33: 0 | R33: 0 | S33: 0 | T33: 0 | U33: 0 | V33: 0 | W33: 7808
A34: Lafayette | B34: 5 | C34: 2668 | D34: 0.7849367461 | E34: 687 | F34: 0.2021182701 | G34: 2 | H34: 19 | I34: 1 | J34: 2 | K34: 0 | L34: 1 | M34: 1 | N34: 15 | O34: 0 | P34: 3 | Q34: 0 | R34: 0 | S34: 0 | T34: 0 | U34: 0 | V34: 0 | W34: 3399
A35: Lake | B35: 103 | C35: 87643 | D35: 0.5811446115 | E35: 61799 | F35: 0.4097778014 | G35: 110 | H35: 799 | I35: 48 | J35: 136 | K35: 15 | L35: 11 | M35: 4 | N35: 197 | O35: 17 | P35: 32 | Q35: 0 | R35: 0 | S35: 0 | T35: 0 | U35: 0 | V35: 0 | W35: 150811
A36: Lee | B36: 125 | C36: 154163 | D36: 0.5791986956 | E36: 110157 | F36: 0.413865783 | G36: 101 | H36: 1177 | I36: 68 | J36: 206 | K36: 22 | L36: 25 | M36: 4 | N36: 182 | O36: 27 | P36: 33 | Q36: 0 | R36: 0 | S36: 0 | T36: 0 | U36: 1 | V36: 0 | W36: 266166
A37: Leon | B37: 134 | C37: 55805 | D37: 0.3761636098 | E37: 90881 | F37: 0.6125996778 | G37: 47 | H37: 1137 | I37: 62 | J37: 232 | K37: 8 | L37: 14 | M37: 11 | N37: 103 | O37: 20 | P37: 33 | Q37: 0 | R37: 0 | S37: 0 | T37: 0 | U37: 0 | V37: 0 | W37: 148353
A38: Levy | B38: 13 | C38: 12054 | D38: 0.6551443013 | E38: 6119 | F38: 0.3325724224 | G38: 22 | H38: 90 | I38: 13 | J38: 33 | K38: 4 | L38: 3 | M38: 0 | N38: 53 | O38: 6 | P38: 2 | Q38: 0 | R38: 0 | S38: 0 | T38: 0 | U38: 0 | V38: 0 | W38: 18399
A39: Liberty | B39: 8 | C39: 2301 | D39: 0.7006699147 | E39: 942 | F39: 0.2868453106 | G39: 6 | H39: 9 | I39: 3 | J39: 2 | K39: 0 | L39: 2 | M39: 0 | N39: 16 | O39: 2 | P39: 1 | Q39: 0 | R39: 0 | S39: 0 | T39: 0 | U39: 0 | V39: 0 | W39: 3284
A40: Madison | B40: 11 | C40: 4474 | D40: 0.5133677567 | E40: 4176 | F40: 0.4791738382 | G40: 4 | H40: 33 | I40: 2 | J40: 11 | K40: 0 | L40: 4 | M40: 0 | N40: 9 | O40: 0 | P40: 1 | Q40: 0 | R40: 0 | S40: 0 | T40: 0 | U40: 0 | V40: 1 | W40: 8715
A41: Manatee | B41: 113 | C41: 85627 | D41: 0.5578633275 | E41: 66503 | F41: 0.4332697031 | G41: 80 | H41: 786 | I41: 56 | J41: 192 | K41: 8 | L41: 14 | M41: 1 | N41: 170 | O41: 15 | P41: 39 | Q41: 0 | R41: 0 | S41: 0 | T41: 0 | U41: 0 | V41: 0 | W41: 153491
A42: Marion | B42: 127 | C42: 93043 | D42: 0.576528178 | E42: 66831 | F42: 0.4141091179 | G42: 109 | H42: 806 | I42: 95 | J42: 146 | K42: 15 | L42: 20 | M42: 5 | N42: 236 | O42: 31 | P42: 46 | Q42: 0 | R42: 0 | S42: 0 | T42: 0 | U42: 1 | V42: 1 | W42: 161385
A43: Martin | B43: 31 | C43: 48183 | D43: 0.6108934616 | E43: 30107 | F43: 0.3817149088 | G43: 25 | H43: 368 | I43: 23 | J43: 81 | K43: 4 | L43: 3 | M43: 2 | N43: 68 | O43: 4 | P43: 5 | Q43: 0 | R43: 0 | S43: 0 | T43: 0 | U43: 0 | V43: 0 | W43: 78873
A44: Miami-Dade | B44: 799 | C44: 332981 | D44: 0.3791138477 | E44: 541440 | F44: 0.6164537967 | G44: 272 | H44: 2276 | I44: 80 | J44: 608 | K44: 67 | L44: 87 | M44: 44 | N44: 245 | O44: 61 | P44: 136 | Q44: 0 | R44: 0 | S44: 3 | T44: 0 | U44: 0 | V44: 14 | W44: 878314
A45: Monroe | B45: 33 | C45: 19234 | D45: 0.4924597383 | E45: 19404 | F45: 0.4968123512 | G45: 13 | H45: 260 | I45: 9 | J45: 67 | K45: 2 | L45: 8 | M45: 0 | N45: 51 | O45: 0 | P45: 9 | Q45: 0 | R45: 0 | S45: 0 | T45: 0 | U45: 0 | V45: 0 | W45: 39057
A46: Nassau | B46: 16 | C46: 29929 | D46: 0.7384771023 | E46: 10251 | F46: 0.2529362416 | G46: 24 | H46: 230 | I46: 12 | J46: 30 | K46: 11 | L46: 2 | M46: 0 | N46: 24 | O46: 5 | P46: 10 | Q46: 0 | R46: 0 | S46: 0 | T46: 0 | U46: 0 | V46: 0 | W46: 40528
A47: Okaloosa | B47: 52 | C47: 70168 | D47: 0.7401843921 | E47: 23421 | F47: 0.2470621743 | G47: 42 | H47: 848 | I47: 53 | J47: 97 | K47: 16 | L47: 14 | M47: 3 | N47: 98 | O47: 17 | P47: 20 | Q47: 0 | R47: 0 | S47: 0 | T47: 0 | U47: 0 | V47: 1 | W47: 94798
A48: Okeechobee | B48: 11 | C48: 7328 | D48: 0.5946121389 | E48: 4856 | F48: 0.394027913 | G48: 9 | H48: 66 | I48: 8 | J48: 15 | K48: 2 | L48: 3 | M48: 0 | N48: 28 | O48: 4 | P48: 5 | Q48: 0 | R48: 0 | S48: 0 | T48: 0 | U48: 0 | V48: 0 | W48: 12324
A49: Orange | B49: 227 | C49: 188589 | D49: 0.4043858916 | E49: 273665 | F49: 0.5868118767 | G49: 160 | H49: 2839 | I49: 112 | J49: 442 | K49: 63 | L49: 43 | M49: 18 | N49: 289 | O49: 54 | P49: 85 | Q49: 0 | R49: 0 | S49: 0 | T49: 0 | U49: 0 | V49: 0 | W49: 466359
A50: Osceola | B50: 71 | C50: 40592 | D50: 0.3734383337 | E50: 67239 | F50: 0.6185854386 | G50: 68 | H50: 458 | I50: 43 | J50: 88 | K50: 13 | L50: 19 | M50: 8 | N50: 112 | O50: 14 | P50: 43 | Q50: 0 | R50: 0 | S50: 0 | T50: 0 | U50: 0 | V50: 1 | W50: 108698
A51: Palm Beach | B51: 767 | C51: 247398 | D51: 0.4118351115 | E51: 349651 | F51: 0.5820522339 | G51: 161 | H51: 2293 | I51: 125 | J51: 503 | K51: 41 | L51: 43 | M51: 18 | N51: 353 | O51: 35 | P51: 97 | Q51: 0 | R51: 0 | S51: 0 | T51: 0 | U51: 0 | V51: 3 | W51: 600721
A52: Pasco | B52: 110 | C52: 112427 | D52: 0.5264101736 | E52: 98263 | F52: 0.4600909291 | G52: 154 | H52: 1695 | I52: 89 | J52: 317 | K52: 30 | L52: 25 | M52: 8 | N52: 455 | O52: 43 | P52: 66 | Q52: 0 | R52: 0 | S52: 0 | T52: 0 | U52: 0 | V52: 1 | W52: 213573
A53: Pinellas | B53: 298 | C53: 213258 | D53: 0.4659319819 | E53: 239104 | F53: 0.5224010382 | G53: 238 | H53: 3329 | I53: 177 | J53: 718 | K53: 41 | L53: 45 | M53: 20 | N53: 612 | O53: 48 | P53: 107 | Q53: 0 | R53: 1 | S53: 0 | T53: 1 | U53: 0 | V53: 3 | W53: 457702
A54: Polk | B54: 167 | C54: 131577 | D54: 0.5290952739 | E54: 114622 | F54: 0.460916106 | G54: 148 | H54: 1446 | I54: 78 | J54: 250 | K54: 30 | L54: 17 | M54: 15 | N54: 396 | O54: 39 | P54: 64 | Q54: 0 | R54: 0 | S54: 0 | T54: 0 | U54: 0 | V54: 1 | W54: 248683
A55: Putnam | B55: 39 | C55: 19326 | D55: 0.6169710126 | E55: 11667 | F55: 0.37246201 | G55: 23 | H55: 144 | I55: 22 | J55: 57 | K55: 8 | L55: 2 | M55: 2 | N55: 56 | O55: 8 | P55: 9 | Q55: 0 | R55: 0 | S55: 0 | T55: 0 | U55: 0 | V55: 0 | W55: 31324
A56: Santa Rosa | B56: 41 | C56: 58186 | D56: 0.757176691 | E56: 17768 | F56: 0.2312156781 | G56: 33 | H56: 605 | I56: 57 | J56: 84 | K56: 8 | L56: 5 | M56: 4 | N56: 84 | O56: 3 | P56: 9 | Q56: 0 | R56: 0 | S56: 0 | T56: 0 | U56: 0 | V56: 0 | W56: 76846
A57: Sarasota | B57: 99 | C57: 110504 | D57: 0.5326007326 | E57: 95119 | F57: 0.4584490071 | G57: 88 | H57: 1092 | I57: 39 | J57: 284 | K57: 10 | L57: 13 | M57: 6 | N57: 253 | O57: 26 | P57: 46 | Q57: 0 | R57: 0 | S57: 0 | T57: 0 | U57: 0 | V57: 0 | W57: 207480
A58: Seminole | B58: 80 | C58: 109943 | D58: 0.5270012463 | E58: 96445 | F58: 0.4622998754 | G58: 68 | H58: 1604 | I58: 72 | J58: 229 | K58: 18 | L58: 14 | M58: 10 | N58: 140 | O58: 24 | P58: 53 | Q58: 0 | R58: 0 | S58: 0 | T58: 0 | U58: 0 | V58: 0 | W58: 208620
A59: St. Johns | B59: 46 | C59: 78513 | D59: 0.6839409382 | E59: 35190 | F59: 0.3065464524 | G59: 36 | H59: 747 | I59: 35 | J59: 147 | K59: 5 | L59: 11 | M59: 2 | N59: 80 | O59: 7 | P59: 20 | Q59: 0 | R59: 0 | S59: 0 | T59: 0 | U59: 0 | V59: 2 | W59: 114795
A60: St. Lucie | B60: 65 | C60: 56202 | D60: 0.4568265503 | E60: 65869 | F60: 0.5354027978 | G60: 66 | H60: 521 | I60: 33 | J60: 115 | K60: 11 | L60: 10 | M60: 9 | N60: 147 | O60: 11 | P60: 32 | Q60: 0 | R60: 0 | S60: 0 | T60: 0 | U60: 0 | V60: 1 | W60: 123027
A61: Sumter | B61: 24 | C61: 40646 | D61: 0.6720679905 | E61: 19524 | F61: 0.322822798 | G61: 23 | H61: 162 | I61: 14 | J61: 49 | K61: 1 | L61: 4 | M61: 0 | N61: 45 | O61: 2 | P61: 9 | Q61: 0 | R61: 0 | S61: 0 | T61: 0 | U61: 0 | V61: 0 | W61: 60479
A62: Suwannee | B62: 16 | C62: 12672 | D62: 0.718815588 | E62: 4751 | F62: 0.2694991208 | G62: 15 | H62: 98 | I62: 10 | J62: 25 | K62: 6 | L62: 3 | M62: 0 | N62: 41 | O62: 3 | P62: 5 | Q62: 0 | R62: 0 | S62: 0 | T62: 0 | U62: 0 | V62: 0 | W62: 17629
A63: Taylor | B63: 14 | C63: 6249 | D63: 0.6851973684 | E63: 2764 | F63: 0.3030701754 | G63: 5 | H63: 61 | I63: 7 | J63: 5 | K63: 1 | L63: 0 | M63: 0 | N63: 23 | O63: 4 | P63: 1 | Q63: 0 | R63: 0 | S63: 0 | T63: 0 | U63: 0 | V63: 0 | W63: 9120
A64: Union | B64: 11 | C64: 3980 | D64: 0.7379936955 | E64: 1339 | F64: 0.2482848136 | G64: 5 | H64: 27 | I64: 5 | J64: 8 | K64: 3 | L64: 0 | M64: 1 | N64: 22 | O64: 0 | P64: 3 | Q64: 0 | R64: 0 | S64: 0 | T64: 0 | U64: 0 | V64: 0 | W64: 5393
A65: Volusia | B65: 125 | C65: 117490 | D65: 0.5009465498 | E65: 114748 | F65: 0.4892553808 | G65: 111 | H65: 1363 | I65: 94 | J65: 266 | K65: 23 | L65: 24 | M65: 11 | N65: 310 | O65: 32 | P65: 60 | Q65: 0 | R65: 0 | S65: 0 | T65: 0 | U65: 0 | V65: 4 | W65: 234536
A66: Wakulla | B66: 12 | C66: 9290 | D66: 0.6336971351 | E66: 5175 | F66: 0.3530013643 | G66: 13 | H66: 112 | I66: 5 | J66: 14 | K66: 5 | L66: 3 | M66: 2 | N66: 34 | O66: 6 | P66: 1 | Q66: 0 | R66: 0 | S66: 0 | T66: 0 | U66: 0 | V66: 0 | W66: 14660
A67: Walton | B67: 21 | C67: 21490 | D67: =C67/W67 -> 0.7541938654 | E67: 6671 | F67: =E67/W67 -> 0.2341194637 | G67: 18 | H67: 205 | I67: 15 | J67: 35 | K67: 3 | L67: 2 | M67: 1 | N67: 46 | O67: 0 | P67: 8 | Q67: 0 | R67: 0 | S67: 0 | T67: 0 | U67: 0 | V67: 0 | W67: 28494
A68: Washington | B68: 16 | C68: 8038 | D68: 0.7307937085 | E68: 2820 | F68: 0.2563869443 | G68: 18 | H68: 56 | I68: 5 | J68: 9 | K68: 6 | L68: 4 | M68: 0 | N68: 39 | O68: 1 | P68: 3 | Q68: 0 | R68: 0 | S68: 0 | T68: 0 | U68: 0 | V68: 0 | W68: 10999
B69: =SUM(B2:B68) -> 6087 | C69: =SUM(C2:C68) -> 4163447 | D69: 0.4913097776 | E69: =SUM(E2:E68) -> 4237756 | F69: 0.5000786507 | G69: =SUM(G2:G68) -> 3856 | H69: 44726 | I69: 2607 | J69: 8947 | K69: 820 | L69: 799 | M69: 322 | N69: 8154 | O69: 946 | P69: 1754 | Q69: 0 | R69: 1 | S69: 3 | T69: 3 | U69: 2 | V69: 36 | W69: 8474179

Sheet By County-OthersCondensed
A1: CountyName | B1: Precincts | C1: Romney | E1: Obama | G1: Others (16) | I1: Total
A2: Alachua | B2: 63 | C2: 48797 | D2: =C2/I2 -> 0.4052301151 | E2: 69699 | F2: =E2/I2 -> 0.578808816 | G2: 1922 | H2: =G2/I2 -> 0.01596106894 | I2: 120418
A3: Baker | B3: 9 | C3: 8975 | D3: =C3/I3 -> 0.7894968332 | E3: 2311 | F3: =E3/I3 -> 0.2032899367 | G3: 82 | H3: =G3/I3 -> 0.00721323012 | I3: 11368
A4: Bay | B4: 44 | C4: 56876 | D4: =C4/I4 -> 0.7121874257 | E4: 22051 | F4: =E4/I4 -> 0.2761172537 | G4: 934 | H4: 0.01169532062 | I4: 79861
A5: Bradford | B5: 14 | C5: 8219 | D5: =C5/I5 -> 0.7064030941 | E5: 3325 | F5: =E5/I5 -> 0.2857756768 | G5: 91 | H5: 0.00782122905 | I5: 11635
A6: Brevard | B6: 166 | C6: 159300 | D6: =C6/I6 -> 0.5578531932 | E6: 122993 | F6: =E6/I6 -> 0.4307095907 | G6: 3266 | H6: 0.01143721613 | I6: 285559
A7: Broward | B7: 792 | C7: 244101 | D7: =C7/I7 -> 0.3227047865 | E7: 508312 | F7: =E7/I7 -> 0.6719952619 | G7: 4009 | H7: 0.005299951614 | I7: 756422
A8: Calhoun | B8: 15 | C8: 4366 | D8: =C8/I8 -> 0.7096879064 | E8: 1664 | F8: =E8/I8 -> 0.2704811443 | G8: 122 | H8: 0.01983094928 | I8: 6152
A9: Charlotte | B9: 79 | C9: 47996 | D9: =C9/I9 -> 0.5667792447 | E9: 35906 | F9: =E9/I9 -> 0.424009825 | G9: 780 | H9: 0.009210930304 | I9: 84682
A10: Citrus | B10: 31 | C10: 44662 | D10: =C10/I10 -> 0.6040711436 | E10: 28460 | F10: =E10/I10 -> 0.3849327112 | G10: 813 | H10: 0.01099614526 | I10: 73935
A11: Clay | B11: 48 | C11: 70022 | D11: =C11/I11 -> 0.7249479754 | E11: 25759 | F11: =E11/I11 -> 0.2666866827 | G11: 808 | H11: 0.008365341809 | I11: 96589
A12: Collier | B12: 62 | C12: 96520 | D12: =C12/I12 -> 0.6472986748 | E12: 51698 | F12: =E12/I12 -> 0.3467058319 | G12: 894 | H12: 0.00599549332 | I12: 149112
A13: Columbia | B13: 23 | C13: 18429 | D13: =C13/I13 -> 0.6784596694 | E13: 8462 | F13: =E13/I13 -> 0.3115267091 | G13: 272 | H13: 0.01001362147 | I13: 27163
A14: Desoto | B14: 15 | C14: 5587 | D14: =C14/I14 -> 0.5663456665 | E14: 4174 | F14: =E14/I14 -> 0.4231120122 | G14: 104 | H14: 0.01054232134 | I14: 9865
A15: Dixie | B15: 10 | C15: 5052 | D15: =C15/I15 -> 0.7278490131 | E15: 1798 | F15: =E15/I15 -> 0.2590404841 | G15: 91 | H15: 0.01311050281 | I15: 6941
A16: Duval | B16: 197 | C16: 211615 | D16: =C16/I16 -> 0.5138182048 | E16: 196737 | F16: =E16/I16 -> 0.4776932266 | G16: 3496 | H16: 0.008488568598 | I16: 411848
A17: Escambia | B17: 79 | C17: 88711 | D17: =C17/I17 -> 0.597372426 | E17: 58185 | F17: =E17/I17 -> 0.3918129049 | G17: 1606 | H17: 0.01081466916 | I17: 148502
A18: Flagler | B18: 30 | C18: 26969 | D18: =C18/I18 -> 0.5330368613 | E18: 23207 | F18: =E18/I18 -> 0.4586816879 | G18: 419 | H18: 0.008281450736 | I18: 50595
A19: Franklin | B19: 8 | C19: 3570 | D19: =C19/I19 -> 0.652173913 | E19: 1845 | F19: =E19/I19 -> 0.3370478626 | G19: 59 | H19: 0.01077822433 | I19: 5474
A20: Gadsden | B20: 25 | C20: 6630 | D20: =C20/I20 -> 0.2946797635 | E20: 15770 | F20: =E20/I20 -> 0.7009200409 | G20: 99 | H20: 0.004400195564 | I20: 22499
A21: Gilchrist | B21: 10 | C21: 5917 | D21: =C21/I21 -> 0.748135036 | E21: 1885 | F21: =E21/I21 -> 0.2383360728 | G21: 107 | H21: 0.01352889114 | I21: 7909
A22: Glades | B22: 13 | C22: 2344 | D22: =C22/I22 -> 0.5876159438 | E22: 1603 | F22: =E22/I22 -> 0.4018551015 | G22: 42 | H22: 0.01052895463 | I22: 3989
A23: Gulf | B23: 9 | C23: 4995 | D23: =C23/I23 -> 0.7027293191 | E23: 2014 | F23: =E23/I23 -> 0.2833427124 | G23: 99 | H23: 0.01392796849 | I23: 7108
A24: Hamilton | B24: 8 | C24: 3138 | D24: =C24/I24 -> 0.5803587942 | E24: 2228 | F24: =E24/I24 -> 0.4120584428 | G24: 41 | H24: 0.007582763085 | I24: 5407
A25: Hardee | B25: 12 | C25: 4696 | D25: =C25/I25 -> 0.6498754498 | E25: 2463 | F25: =E25/I25 -> 0.3408524772 | G25: 67 | H25: 0.009272073069 | I25: 7226
A26: Hendry | B26: 10 | C26: 5355 | D26: =C26/I26 -> 0.5257731959 | E26: 4751 | F26: =E26/I26 -> 0.4664702995 | G26: 79 | H26: 0.007756504664 | I26: 10185
A27: Hernando | B27: 39 | C27: 44938 | D27: =C27/I27 -> 0.5371054299 | E27: 37830 | F27: =E27/I27 -> 0.452149593 | G27: 899 | H27: 0.01074497711 | I27: 83667
A28: Highlands | B28: 25 | C28: 25915 | D28: =C28/I28 -> 0.6105692206 | E28: 16148 | F28: =E28/I28 -> 0.3804542456 | G28: 381 | H28: 0.008976533786 | I28: 42444
A29: Hillsborough | B29: 347 | C29: 250186 | D29: =C29/I29 -> 0.4615109334 | E29: 286467 | F29: =E29/I29 -> 0.5284374527 | G29: 5449 | H29: 0.0100516139 | I29: 542102
A30: Holmes | B30: 8 | C30: 6919 | D30: =C30/I30 -> 0.836233986 | E30: 1264 | F30: =E30/I30 -> 0.1527677061 | G30: 91 | H30: 0.01099830795 | I30: 8274
A31: Indian River | B31: 37 | C31: 43450 | D31: =C31/I31 -> 0.6079984328 | E31: 27492 | F31: =E31/I31 -> 0.3846971902 | G31: 522 | H31: 0.007304377029 | I31: 71464
A32: Jackson | B32: 14 | C32: 13418 | D32: =C32/I32 -> 0.6407525906 | E32: 7342 | F32: =E32/I32 -> 0.3506040781 | G32: 181 | H32: 0.008643331264 | I32: 20941
A33: Jefferson | B33: 15 | C33: 3808 | D33: =C33/I33 -> 0.487704918 | E33: 3945 | F33: =E33/I33 -> 0.5052510246 | G33: 55 | H33: 0.007044057377 | I33: 7808
A34: Lafayette | B34: 5 | C34: 2668 | D34: =C34/I34 -> 0.7849367461 | E34: 687 | F34: =E34/I34 -> 0.2021182701 | G34: 44 | H34: 0.01294498382 | I34: 3399
A35: Lake | B35: 103 | C35: 87643 | D35: =C35/I35 -> 0.5811446115 | E35: 61799 | F35: =E35/I35 -> 0.4097778014 | G35: 1369 | H35: 0.009077587179 | I35: 150811
A36: Lee | B36: 125 | C36: 154163 | D36: =C36/I36 -> 0.5791986956 | E36: 110157 | F36: =E36/I36 -> 0.413865783 | G36: 1846 | H36: 0.006935521442 | I36: 266166
A37: Leon | B37: 134 | C37: 55805 | D37: =C37/I37 -> 0.3761636098 | E37: 90881 | F37: =E37/I37 -> 0.6125996778 | G37: 1667 | H37: 0.01123671244 | I37: 148353
A38: Levy | B38: 13 | C38: 12054 | D38: =C38/I38 -> 0.6551443013 | E38: 6119 | F38: =E38/I38 -> 0.3325724224 | G38: 226 | H38: 0.01228327627 | I38: 18399
A39: Liberty | B39: 8 | C39: 2301 | D39: =C39/I39 -> 0.7006699147 | E39: 942 | F39: =E39/I39 -> 0.2868453106 | G39: 41 | H39: 0.01248477467 | I39: 3284
A40: Madison | B40: 11 | C40: 4474 | D40: =C40/I40 -> 0.5133677567 | E40: 4176 | F40: =E40/I40 -> 0.4791738382 | G40: 65 | H40: 0.007458405049 | I40: 8715
A41: Manatee | B41: 113 | C41: 85627 | D41: =C41/I41 -> 0.5578633275 | E41: 66503 | F41: =E41/I41 -> 0.4332697031 | G41: 1361 | H41: 0.008866969399 | I41: 153491
A42: Marion | B42: 127 | C42: 93043 | D42: =C42/I42 -> 0.576528178 | E42: 66831 | F42: =E42/I42 -> 0.4141091179 | G42: 1511 | H42: 0.009362704093 | I42: 161385
A43: Martin | B43: 31 | C43: 48183 | D43: =C43/I43 -> 0.6108934616 | E43: 30107 | F43: =E43/I43 -> 0.3817149088 | G43: 583 | H43: 0.007391629582 | I43: 78873
A44: Miami-Dade | B44: 799 | C44: 332981 | D44: =C44/I44 -> 0.3791138477 | E44: 541440 | F44: =E44/I44 -> 0.6164537967 | G44: 3893 | H44: 0.004432355627 | I44: 878314
A45: Monroe | B45: 33 | C45: 19234 | D45: =C45/I45 -> 0.4924597383 | E45: 19404 | F45: =E45/I45 -> 0.4968123512 | G45: 419 | H45: 0.01072791049 | I45: 39057
A46: Nassau | B46: 16 | C46: 29929 | D46: =C46/I46 -> 0.7384771023 | E46: 10251 | F46: =E46/I46 -> 0.2529362416 | G46: 348 | H46: 0.008586656139 | I46: 40528
A47: Okaloosa | B47: 52 | C47: 70168 | D47: =C47/I47 -> 0.7401843921 | E47: 23421 | F47: =E47/I47 -> 0.2470621743 | G47: 1209 | H47: 0.01275343362 | I47: 94798
A48: Okeechobee | B48: 11 | C48: 7328 | D48: =C48/I48 -> 0.5946121389 | E48: 4856 | F48: =E48/I48 -> 0.394027913 | G48: 140 | H48: 0.01135994807 | I48: 12324
A49: Orange | B49: 227 | C49: 188589 | D49: =C49/I49 -> 0.4043858916 | E49: 273665 | F49: =E49/I49 -> 0.5868118767 | G49: 4105 | H49: 0.008802231757 | I49: 466359
A50: Osceola | B50: 71 | C50: 40592 | D50: =C50/I50 -> 0.3734383337 | E50: 67239 | F50: =E50/I50 -> 0.6185854386 | G50: 867 | H50: 0.007976227713 | I50: 108698
A51: Palm Beach | B51: 767 | C51: 247398 | D51: =C51/I51 -> 0.4118351115 | E51: 349651 | F51: =E51/I51 -> 0.5820522339 | G51: 3672 | H51: 0.006112654627 | I51: 600721
A52: Pasco | B52: 110 | C52: 112427 | D52: =C52/I52 -> 0.5264101736 | E52: 98263 | F52: =E52/I52 -> 0.4600909291 | G52: 2883 | H52: 0.01349889733 | I52: 213573
A53: Pinellas | B53: 298 | C53: 213258 | D53: =C53/I53 -> 0.4659319819 | E53: 239104 | F53: =E53/I53 -> 0.5224010382 | G53: 5340 | H53: 0.01166697983 | I53: 457702
A54: Polk | B54: 167 | C54: 131577 | D54: =C54/I54 -> 0.5290952739 | E54: 114622 | F54: =E54/I54 -> 0.460916106 | G54: 2484 | H54: 0.00998862005 | I54: 248683
A55: Putnam | B55: 39 | C55: 19326 | D55: =C55/I55 -> 0.6169710126 | E55: 11667 | F55: =E55/I55 -> 0.37246201 | G55: 331 | H55: 0.0105669774 | I55: 31324
A56: Santa Rosa | B56: 41 | C56: 58186 | D56: =C56/I56 -> 0.757176691 | E56: 17768 | F56: =E56/I56 -> 0.2312156781 | G56: 892 | H56: 0.01160763085 | I56: 76846
A57: Sarasota | B57: 99 | C57: 110504 | D57: =C57/I57 -> 0.5326007326 | E57: 95119 | F57: =E57/I57 -> 0.4584490071 | G57: 1857 | H57: 0.008950260266 | I57: 207480
A58: Seminole | B58: 80 | C58: 109943 | D58: =C58/I58 -> 0.5270012463 | E58: 96445 | F58: =E58/I58 -> 0.4622998754 | G58: 2232 | H58: 0.01069887834 | I58: 208620
A59: St. Johns | B59: 46 | C59: 78513 | D59: =C59/I59 -> 0.6839409382 | E59: 35190 | F59: =E59/I59 -> 0.3065464524 | G59: 1092 | H59: 0.009512609434 | I59: 114795
A60: St. Lucie | B60: 65 | C60: 56202 | D60: =C60/I60 -> 0.4568265503 | E60: 65869 | F60: =E60/I60 -> 0.5354027978 | G60: 956 | H60: 0.007770651971 | I60: 123027
A61: Sumter | B61: 24 | C61: 40646 | D61: =C61/I61 -> 0.6720679905 | E61: 19524 | F61: =E61/I61 -> 0.322822798 | G61: 309 | H61: 0.005109211462 | I61: 60479
A62: Suwannee | B62: 16 | C62: 12672 | D62: =C62/I62 -> 0.718815588 | E62: 4751 | F62: =E62/I62 -> 0.2694991208 | G62: 206 | H62: 0.01168529128 | I62: 17629
A63: Taylor | B63: 14 | C63: 6249 | D63: =C63/I63 -> 0.6851973684 | E63: 2764 | F63: =E63/I63 -> 0.3030701754 | G63: 107 | H63: 0.01173245614 | I63: 9120
A64: Union | B64: 11 | C64: 3980 | D64: =C64/I64 -> 0.7379936955 | E64: 1339 | F64: =E64/I64 -> 0.2482848136 | G64: 74 | H64: 0.01372149082 | I64: 5393
A65: Volusia | B65: 125 | C65: 117490 | D65: =C65/I65 -> 0.5009465498 | E65: 114748 | F65: =E65/I65 -> 0.4892553808 | G65: 2298 | H65: 0.00979806938 | I65: 234536
A66: Wakulla | B66: 12 | C66: 9290 | D66: =C66/I66 -> 0.6336971351 | E66: 5175 | F66: =E66/I66 -> 0.3530013643 | G66: 195 | H66: 0.01330150068 | I66: 14660
A67: Walton | B67: 21 | C67: 21490 | D67: =C67/I67 -> 0.7541938654 | E67: 6671 | F67: =E67/I67 -> 0.2341194637 | G67: 333 | H67: =G67/I67 -> 0.01168667088 | I67: 28494
A68: Washington | B68: 16 | C68: 8038 | D68: =C68/I68 -> 0.7307937085 | E68: 2820 | F68: =E68/I68 -> 0.2563869443 | G68: 141 | H68: 0.01281934721 | I68: 10999
B69: =SUM(B2:B68) -> 6087 | C69: =SUM(C2:C68) -> 4163447 | D69: =C69/I69 -> 0.4913097776 | E69: =SUM(E2:E68) -> 4237756 | F69: =E69/I69 -> 0.5000786507 | G69: 72976 | H69: 0.008611571693 | I69: 8474179

Sheet Co. Vote Largest to Smallest
A1: CountyName | B1: Precincts | C1: Romney | E1: Obama | G1: Others (16) | I1: Total
A2: Miami-Dade | B2: 799 | C2: 332981 | D2: =C2/I2 -> 0.3791138477 | E2: 541440 | F2: =E2/I2 -> 0.6164537967 | G2: 3893 | H2: =G2/I2 -> 0.004432355627 | I2: 878314
A3: Broward | B3: 792 | C3: 244101 | D3: =C3/I3 -> 0.3227047865 | E3: 508312 | F3: =E3/I3 -> 0.6719952619 | G3: 4009 | H3: =G3/I3 -> 0.005299951614 | I3: 756422
A4: Palm Beach | B4: 767 | C4: 247398 | D4: =C4/I4 -> 0.4118351115 | E4: 349651 | F4: =E4/I4 -> 0.5820522339 | G4: 3672 | H4: =G4/I4 -> 0.006112654627 | I4: 600721
A5: Hillsborough | B5: 347 | C5: 250186 | D5: =C5/I5 -> 0.4615109334 | E5: 286467 | F5: =E5/I5 -> 0.5284374527 | G5: 5449 | H5: =G5/I5 -> 0.0100516139 | I5: 542102
A6: Orange | B6: 227 | C6: 188589 | D6: =C6/I6 -> 0.4043858916 | E6: 273665 | F6: =E6/I6 -> 0.5868118767 | G6: 4105 | H6: =G6/I6 -> 0.008802231757 | I6: 466359
A7: Pinellas | B7: 298 | C7: 213258 | D7: =C7/I7 -> 0.4659319819 | E7: 239104 | F7: =E7/I7 -> 0.5224010382 | G7: 5340 | H7: =G7/I7 -> 0.01166697983 | I7: 457702
A8: Duval | B8: 197 | C8: 211615 | D8: =C8/I8 -> 0.5138182048 | E8: 196737 | F8: =E8/I8 -> 0.4776932266 | G8: 3496 | H8: =G8/I8 -> 0.008488568598 | I8: 411848
A9: Brevard | B9: 166 | C9: 159300 | D9: =C9/I9 -> 0.5578531932 | E9: 122993 | F9: =E9/I9 -> 0.4307095907 | G9: 3266 | H9: =G9/I9 -> 0.01143721613 | I9: 285559
A10: Lee | B10: 125 | C10: 154163 | D10: =C10/I10 -> 0.5791986956 | E10: 110157 | F10: =E10/I10 -> 0.413865783 | G10: 1846 | H10: =G10/I10 -> 0.006935521442 | I10: 266166
A11: Polk | B11: 167 | C11: 131577 | D11: =C11/I11 -> 0.5290952739 | E11: 114622 | F11: =E11/I11 -> 0.460916106 | G11: 2484 | H11: =G11/I11 -> 0.00998862005 | I11: 248683
A12: Volusia | B12: 125 | C12: 117490 | D12: =C12/I12 -> 0.5009465498 | E12: 114748 | F12: =E12/I12 -> 0.4892553808 | G12: 2298 | H12: =G12/I12 -> 0.00979806938 | I12: 234536
A13: Pasco | B13: 110 | C13: 112427 | D13: =C13/I13 -> 0.5264101736 | E13: 98263 | F13: =E13/I13 -> 0.4600909291 | G13: 2883 | H13: =G13/I13 -> 0.01349889733 | I13: 213573
A14: Seminole | B14: 80 | C14: 109943 | D14: =C14/I14 -> 0.5270012463 | E14: 96445 | F14: =E14/I14 -> 0.4622998754 | G14: 2232 | H14: =G14/I14 -> 0.01069887834 | I14: 208620
A15: Sarasota | B15: 99 | C15: 110504 | D15: =C15/I15 -> 0.5326007326 | E15: 95119 | F15: =E15/I15 -> 0.4584490071 | G15: 1857 | H15: =G15/I15 -> 0.008950260266 | I15: 207480
A16: Marion | B16: 127 | C16: 93043 | D16: =C16/I16 -> 0.576528178 | E16: 66831 | F16: =E16/I16 -> 0.4141091179 | G16: 1511 | H16: =G16/I16 -> 0.009362704093 | I16: 161385
A17: Manatee | B17: 113 | C17: 85627 | D17: =C17/I17 -> 0.5578633275 | E17: 66503 | F17: =E17/I17 -> 0.4332697031 | G17: 1361 | H17: =G17/I17 -> 0.008866969399 | I17: 153491
A18: Lake | B18: 103 | C18: 87643 | D18: =C18/I18 -> 0.5811446115 | E18: 61799 | F18: =E18/I18 -> 0.4097778014 | G18: 1369 | H18: =G18/I18 -> 0.009077587179 | I18: 150811
A19: Collier | B19: 62 | C19: 96520 | D19: =C19/I19 -> 0.6472986748 | E19: 51698 | F19: =E19/I19 -> 0.3467058319 | G19: 894 | H19: =G19/I19 -> 0.00599549332 | I19: 149112
A20: Escambia | B20: 79 | C20: 88711 | D20: =C20/I20 -> 0.597372426 | E20: 58185 | F20: =E20/I20 -> 0.3918129049 | G20: 1606 | H20: =G20/I20 -> 0.01081466916 | I20: 148502
A21: Leon | B21: 134 | C21: 55805 | D21: =C21/I21 -> 0.3761636098 | E21: 90881 | F21: =E21/I21 -> 0.6125996778 | G21: 1667 | H21: =G21/I21 -> 0.01123671244 | I21: 148353
A22: St. Lucie | B22: 65 | C22: 56202 | D22: =C22/I22 -> 0.4568265503 | E22: 65869 | F22: =E22/I22 -> 0.5354027978 | G22: 956 | H22: =G22/I22 -> 0.007770651971 | I22: 123027
A23: Alachua | B23: 63 | C23: 48797 | D23: =C23/I23 -> 0.4052301151 | E23: 69699 | F23: =E23/I23 -> 0.578808816 | G23: 1922 | H23: =G23/I23 -> 0.01596106894 | I23: 120418
A24: St. Johns | B24: 46 | C24: 78513 | D24: =C24/I24 -> 0.6839409382 | E24: 35190 | F24: =E24/I24 -> 0.3065464524 | G24: 1092 | H24: =G24/I24 -> 0.009512609434 | I24: 114795
A25: Osceola | B25: 71 | C25: 40592 | D25: =C25/I25 -> 0.3734383337 | E25: 67239 | F25: =E25/I25 -> 0.6185854386 | G25: 867 | H25: =G25/I25 -> 0.007976227713 | I25: 108698
A26: Clay | B26: 48 | C26: 70022 | D26: =C26/I26 -> 0.7249479754 | E26: 25759 | F26: =E26/I26 -> 0.2666866827 | G26: 808 | H26: =G26/I26 -> 0.008365341809 | I26: 96589
A27: Okaloosa | B27: 52 | C27: 70168 | D27: =C27/I27 -> 0.7401843921 | E27: 23421 | F27: =E27/I27 -> 0.2470621743 | G27: 1209 | H27: =G27/I27 -> 0.01275343362 | I27: 94798
A28: Charlotte | B28: 79 | C28: 47996 | D28: =C28/I28 -> 0.5667792447 | E28: 35906 | F28: =E28/I28 -> 0.424009825 | G28: 780 | H28: =G28/I28 -> 0.009210930304 | I28: 84682
A29: Hernando | B29: 39 | C29: 44938 | D29: =C29/I29 -> 0.5371054299 | E29: 37830 | F29: =E29/I29 -> 0.452149593 | G29: 899 | H29: =G29/I29 -> 0.01074497711 | I29: 83667
A30: Bay | B30: 44 | C30: 56876 | D30: =C30/I30 -> 0.7121874257 | E30: 22051 | F30: =E30/I30 -> 0.2761172537 | G30: 934 | H30: =G30/I30 -> 0.01169532062 | I30: 79861
A31: Martin | B31: 31 | C31: 48183 | D31: =C31/I31 -> 0.6108934616 | E31: 30107 | F31: =E31/I31 -> 0.3817149088 | G31: 583 | H31: =G31/I31 -> 0.007391629582 | I31: 78873
A32: Santa Rosa | B32: 41 | C32: 58186 | D32: =C32/I32 -> 0.757176691 | E32: 17768 | F32: =E32/I32 -> 0.2312156781 | G32: 892 | H32: =G32/I32 -> 0.01160763085 | I32: 76846
A33: Citrus | B33: 31 | C33: 44662 | D33: =C33/I33 -> 0.6040711436 | E33: 28460 | F33: =E33/I33 -> 0.3849327112 | G33: 813 | H33: =G33/I33 -> 0.01099614526 | I33: 73935
A34: Indian River | B34: 37 | C34: 43450 | D34: =C34/I34 -> 0.6079984328 | E34: 27492 | F34: =E34/I34 -> 0.3846971902 | G34: 522 | H34: =G34/I34 -> 0.007304377029 | I34: 71464
A35: Sumter | B35: 24 | C35: 40646 | D35: =C35/I35 -> 0.6720679905 | E35: 19524 | F35: =E35/I35 -> 0.322822798 | G35: 309 | H35: =G35/I35 -> 0.005109211462 | I35: 60479
A36: Flagler | B36: 30 | C36: 26969 | D36: =C36/I36 -> 0.5330368613 | E36: 23207 | F36: =E36/I36 -> 0.4586816879 | G36: 419 | H36: =G36/I36 -> 0.008281450736 | I36: 50595
A37: Highlands | B37: 25 | C37: 25915 | D37: =C37/I37 -> 0.6105692206 | E37: 16148 | F37: =E37/I37 -> 0.3804542456 | G37: 381 | H37: =G37/I37 -> 0.008976533786 | I37: 42444
A38: Nassau | B38: 16 | C38: 29929 | D38: =C38/I38 -> 0.7384771023 | E38: 10251 | F38: =E38/I38 -> 0.2529362416 | G38: 348 | H38: =G38/I38 -> 0.008586656139 | I38: 40528
A39: Monroe | B39: 33 | C39: 19234 | D39: =C39/I39 -> 0.4924597383 | E39: 19404 | F39: =E39/I39 -> 0.4968123512 | G39: 419 | H39: =G39/I39 -> 0.01072791049 | I39: 39057
A40: Putnam | B40: 39 | C40: 19326 | D40: =C40/I40 -> 0.6169710126 | E40: 11667 | F40: =E40/I40 -> 0.37246201 | G40: 331 | H40: =G40/I40 -> 0.0105669774 | I40: 31324
A41: Walton | B41: 21 | C41: 21490 | D41: =C41/I41 -> 0.7541938654 | E41: 6671 | F41: =E41/I41 -> 0.2341194637 | G41: 333 | H41: =G41/I41 -> 0.01168667088 | I41: 28494
A42: Columbia | B42: 23 | C42: 18429 | D42: =C42/I42 -> 0.6784596694 | E42: 8462 | F42: =E42/I42 -> 0.3115267091 | G42: 272 | H42: =G42/I42 -> 0.01001362147 | I42: 27163
A43: Gadsden | B43: 25 | C43: 6630 | D43: =C43/I43 -> 0.2946797635 | E43: 15770 | F43: =E43/I43 -> 0.7009200409 | G43: 99 | H43: =G43/I43 -> 0.004400195564 | I43: 22499
A44: Jackson | B44: 14 | C44: 13418 | D44: =C44/I44 -> 0.6407525906 | E44: 7342 | F44: =E44/I44 -> 0.3506040781 | G44: 181 | H44: =G44/I44 -> 0.008643331264 | I44: 20941
A45: Levy | B45: 13 | C45: 12054 | D45: =C45/I45 -> 0.6551443013 | E45: 6119 | F45: =E45/I45 -> 0.3325724224 | G45: 226 | H45: =G45/I45 -> 0.01228327627 | I45: 18399
A46: Suwannee | B46: 16 | C46: 12672 | D46: =C46/I46 -> 0.718815588 | E46: 4751 | F46: =E46/I46 -> 0.2694991208 | G46: 206 | H46: =G46/I46 -> 0.01168529128 | I46: 17629
A47: Wakulla | B47: 12 | C47: 9290 | D47: =C47/I47 -> 0.6336971351 | E47: 5175 | F47: =E47/I47 -> 0.3530013643 | G47: 195 | H47: =G47/I47 -> 0.01330150068 | I47: 14660
A48: Okeechobee | B48: 11 | C48: 7328 | D48: =C48/I48 -> 0.5946121389 | E48: 4856 | F48: =E48/I48 -> 0.394027913 | G48: 140 | H48: =G48/I48 -> 0.01135994807 | I48: 12324
A49: Bradford | B49: 14 | C49: 8219 | D49: =C49/I49 -> 0.7064030941 | E49: 3325 | F49: =E49/I49 -> 0.2857756768 | G49: 91 | H49: =G49/I49 -> 0.00782122905 | I49: 11635
A50: Baker | B50: 9 | C50: 8975 | D50: =C50/I50 -> 0.7894968332 | E50: 2311 | F50: =E50/I50 -> 0.2032899367 | G50: 82 | H50: =G50/I50 -> 0.00721323012 | I50: 11368
A51: Washington | B51: 16 | C51: 8038 | D51: =C51/I51 -> 0.7307937085 | E51: 2820 | F51: =E51/I51 -> 0.2563869443 | G51: 141 | H51: =G51/I51 -> 0.01281934721 | I51: 10999
A52: Hendry | B52: 10 | C52: 5355 | D52: =C52/I52 -> 0.5257731959 | E52: 4751 | F52: =E52/I52 -> 0.4664702995 | G52: 79 | H52: =G52/I52 -> 0.007756504664 | I52: 10185
A53: Desoto | B53: 15 | C53: 5587 | D53: =C53/I53 -> 0.5663456665 | E53: 4174 | F53: =E53/I53 -> 0.4231120122 | G53: 104 | H53: =G53/I53 -> 0.01054232134 | I53: 9865
A54: Taylor | B54: 14 | C54: 6249 | D54: =C54/I54 -> 0.6851973684 | E54: 2764 | F54: =E54/I54 -> 0.3030701754 | G54: 107 | H54: =G54/I54 -> 0.01173245614 | I54: 9120
A55: Madison | B55: 11 | C55: 4474 | D55: =C55/I55 -> 0.5133677567 | E55: 4176 | F55: =E55/I55 -> 0.4791738382 | G55: 65 | H55: =G55/I55 -> 0.007458405049 | I55: 8715
A56: Holmes | B56: 8 | C56: 6919 | D56: =C56/I56 -> 0.836233986 | E56: 1264 | F56: =E56/I56 -> 0.1527677061 | G56: 91 | H56: =G56/I56 -> 0.01099830795 | I56: 8274
A57: Gilchrist | B57: 10 | C57: 5917 | D57: =C57/I57 -> 0.748135036 | E57: 1885 | F57: =E57/I57 -> 0.2383360728 | G57: 107 | H57: =G57/I57 -> 0.01352889114 | I57: 7909
A58: Jefferson | B58: 15 | C58: 3808 | D58: =C58/I58 -> 0.487704918 | E58: 3945 | F58: =E58/I58 -> 0.5052510246 | G58: 55 | H58: =G58/I58 -> 0.007044057377 | I58: 7808
A59: Hardee | B59: 12 | C59: 4696 | D59: =C59/I59 -> 0.6498754498 | E59: 2463 | F59: =E59/I59 -> 0.3408524772 | G59: 67 | H59: =G59/I59 -> 0.009272073069 | I59: 7226
A60: Gulf | B60: 9 | C60: 4995 | D60: =C60/I60 -> 0.7027293191 | E60: 2014 | F60: =E60/I60 -> 0.2833427124 | G60: 99 | H60: =G60/I60 -> 0.01392796849 | I60: 7108
A61: Dixie | B61: 10 | C61: 5052 | D61: =C61/I61 -> 0.7278490131 | E61: 1798 | F61: =E61/I61 -> 0.2590404841 | G61: 91 | H61: =G61/I61 -> 0.01311050281 | I61: 6941
A62: Calhoun | B62: 15 | C62: 4366 | D62: =C62/I62 -> 0.7096879064 | E62: 1664 | F62: =E62/I62 -> 0.2704811443 | G62: 122 | H62: =G62/I62 -> 0.01983094928 | I62: 6152
A63: Franklin | B63: 8 | C63: 3570 | D63: =C63/I63 -> 0.652173913 | E63: 1845 | F63: =E63/I63 -> 0.3370478626 | G63: 59 | H63: =G63/I63 -> 0.01077822433 | I63: 5474
A64: Hamilton | B64: 8 | C64: 3138 | D64: =C64/I64 -> 0.5803587942 | E64: 2228 | F64: =E64/I64 -> 0.4120584428 | G64: 41 | H64: =G64/I64 -> 0.007582763085 | I64: 5407
A65: Union | B65: 11 | C65: 3980 | D65: =C65/I65 -> 0.7379936955 | E65: 1339 | F65: =E65/I65 -> 0.2482848136 | G65: 74 | H65: =G65/I65 -> 0.01372149082 | I65: 5393
A66: Glades | B66: 13 | C66: 2344 | D66: =C66/I66 -> 0.5876159438 | E66: 1603 | F66: =E66/I66 -> 0.4018551015 | G66: 42 | H66: =G66/I66 -> 0.01052895463 | I66: 3989
A67: Lafayette | B67: 5 | C67: 2668 | D67: =C67/I67 -> 0.7849367461 | E67: 687 | F67: =E67/I67 -> 0.2021182701 | G67: 44 | H67: =G67/I67 -> 0.01294498382 | I67: 3399
A68: Liberty | B68: 8 | C68: 2301 | D68: =C68/I68 -> 0.7006699147 | E68: 942 | F68: =E68/I68 -> 0.2868453106 | G68: 41 | H68: =G68/I68 -> 0.01248477467 | I68: 3284
B69: =SUM(B2:B68) -> 6087 | C69: =SUM(C2:C68) -> 4163447 | D69: =C69/I69 -> 0.4913097776 | E69: =SUM(E2:E68) -> 4237756 | F69: =E69/I69 -> 0.5000786507 | G69: 72976 | H69: =G69/I69 -> 0.008611571693 | I69: 8474179

Sheet Obama Strongest to Weakest
A1: CountyName | B1: Precincts | C1: Romney | E1: Obama | G1: Others (16) | I1: Total
A2: Gadsden | B2: 25 | C2: 6630 | D2: =C2/I2 -> 0.2946797635 | E2: 15770 | F2: =E2/I2 -> 0.7009200409 | G2: 99 | H2: =G2/I2 -> 0.004400195564 | I2: 22499
A3: Broward | B3: 792 | C3: 244101 | D3: =C3/I3 -> 0.3227047865 | E3: 508312 | F3: =E3/I3 -> 0.6719952619 | G3: 4009 | H3: =G3/I3 -> 0.005299951614 | I3: 756422
A4: Osceola | B4: 71 | C4: 40592 | D4: =C4/I4 -> 0.3734383337 | E4: 67239 | F4: =E4/I4 -> 0.6185854386 | G4: 867 | H4: =G4/I4 -> 0.007976227713 | I4: 108698
A5: Miami-Dade | B5: 799 | C5: 332981 | D5: =C5/I5 -> 0.3791138477 | E5: 541440 | F5: =E5/I5 -> 0.6164537967 | G5: 3893 | H5: =G5/I5 -> 0.004432355627 | I5: 878314
A6: Leon | B6: 134 | C6: 55805 | D6: =C6/I6 -> 0.3761636098 | E6: 90881 | F6: =E6/I6 -> 0.6125996778 | G6: 1667 | H6: =G6/I6 -> 0.01123671244 | I6: 148353
A7: Orange | B7: 227 | C7: 188589 | D7: =C7/I7 -> 0.4043858916 | E7: 273665 | F7: =E7/I7 -> 0.5868118767 | G7: 4105 | H7: =G7/I7 -> 0.008802231757 | I7: 466359
A8: Palm Beach | B8: 767 | C8: 247398 | D8: =C8/I8 -> 0.4118351115 | E8: 349651 | F8: =E8/I8 -> 0.5820522339 | G8: 3672 | H8: =G8/I8 -> 0.006112654627 | I8: 600721
A9: Alachua | B9: 63 | C9: 48797 | D9: =C9/I9 -> 0.4052301151 | E9: 69699 | F9: =E9/I9 -> 0.578808816 | G9: 1922 | H9: =G9/I9 -> 0.01596106894 | I9: 120418
A10: St. Lucie | B10: 65 | C10: 56202 | D10: =C10/I10 -> 0.4568265503 | E10: 65869 | F10: =E10/I10 -> 0.5354027978 | G10: 956 | H10: =G10/I10 -> 0.007770651971 | I10: 123027
A11: Hillsborough | B11: 347 | C11: 250186 | D11: =C11/I11 -> 0.4615109334 | E11: 286467 | F11: =E11/I11 -> 0.5284374527 | G11: 5449 | H11: =G11/I11 -> 0.0100516139 | I11: 542102
A12: Pinellas | B12: 298 | C12: 213258 | D12: =C12/I12 -> 0.4659319819 | E12: 239104 | F12: =E12/I12 -> 0.5224010382 | G12: 5340 | H12: =G12/I12 -> 0.01166697983 | I12: 457702
A13: Jefferson | B13: 15 | C13: 3808 | D13: =C13/I13 -> 0.487704918 | E13: 3945 | F13: =E13/I13 -> 0.5052510246 | G13: 55 | H13: =G13/I13 -> 0.007044057377 | I13: 7808
A14: Monroe | B14: 33 | C14: 19234 | D14: =C14/I14 -> 0.4924597383 | E14: 19404 | F14: =E14/I14 -> 0.4968123512 | G14: 419 | H14: =G14/I14 -> 0.01072791049 | I14: 39057
A15: Volusia | B15: 125 | C15: 117490 | D15: =C15/I15 -> 0.5009465498 | E15: 114748 | F15: =E15/I15 -> 0.4892553808 | G15: 2298 | H15: =G15/I15 -> 0.00979806938 | I15: 234536
A16: Madison | B16: 11 | C16: 4474 | D16: =C16/I16 -> 0.5133677567 | E16: 4176 | F16: =E16/I16 -> 0.4791738382 | G16: 65 | H16: =G16/I16 -> 0.007458405049 | I16: 8715
A17: Duval | B17: 197 | C17: 211615 | D17: =C17/I17 -> 0.5138182048 | E17: 196737 | F17: =E17/I17 -> 0.4776932266 | G17: 3496 | H17: =G17/I17 -> 0.008488568598 | I17: 411848
A18: Hendry | B18: 10 | C18: 5355 | D18: =C18/I18 -> 0.5257731959 | E18: 4751 | F18: =E18/I18 -> 0.4664702995 | G18: 79 | H18: =G18/I18 -> 0.007756504664 | I18: 10185
A19: Seminole | B19: 80 | C19: 109943 | D19: =C19/I19 -> 0.5270012463 | E19: 96445 | F19: =E19/I19 -> 0.4622998754 | G19: 2232 | H19: =G19/I19 -> 0.01069887834 | I19: 208620
A20: Polk | B20: 167 | C20: 131577 | D20: =C20/I20 -> 0.5290952739 | E20: 114622 | F20: =E20/I20 -> 0.460916106 | G20: 2484 | H20: =G20/I20 -> 0.00998862005 | I20: 248683
A21: Pasco | B21: 110 | C21: 112427 | D21: =C21/I21 -> 0.5264101736 | E21: 98263 | F21: =E21/I21 -> 0.4600909291 | G21: 2883 | H21: =G21/I21 -> 0.01349889733 | I21: 213573
A22: Flagler | B22: 30 | C22: 26969 | D22: =C22/I22 -> 0.5330368613 | E22: 23207 | F22: =E22/I22 -> 0.4586816879 | G22: 419 | H22: =G22/I22 -> 0.008281450736 | I22: 50595
A23: Sarasota | B23: 99 | C23: 110504 | D23: =C23/I23 -> 0.5326007326 | E23: 95119 | F23: =E23/I23 -> 0.4584490071 | G23: 1857 | H23: =G23/I23 -> 0.008950260266 | I23: 207480
A24: Hernando | B24: 39 | C24: 44938 | D24: =C24/I24 -> 0.5371054299 | E24: 37830 | F24: =E24/I24 -> 0.452149593 | G24: 899 | H24: =G24/I24 -> 0.01074497711 | I24: 83667
A25: Manatee | B25: 113 | C25: 85627 | D25: =C25/I25 -> 0.5578633275 | E25: 66503 | F25: =E25/I25 -> 0.4332697031 | G25: 1361 | H25: =G25/I25 -> 0.008866969399 | I25: 153491
A26: Brevard | B26: 166 | C26: 159300 | D26: =C26/I26 -> 0.5578531932 | E26: 122993 | F26: =E26/I26 -> 0.4307095907 | G26: 3266 | H26: =G26/I26 -> 0.01143721613 | I26: 285559
A27: Charlotte | B27: 79 | C27: 47996 | D27: =C27/I27 -> 0.5667792447 | E27: 35906 | F27: =E27/I27 -> 0.424009825 | G27: 780 | H27: =G27/I27 -> 0.009210930304 | I27: 84682
A28: Desoto | B28: 15 | C28: 5587 | D28: =C28/I28 -> 0.5663456665 | E28: 4174 | F28: =E28/I28 -> 0.4231120122 | G28: 104 | H28: =G28/I28 -> 0.01054232134 | I28: 9865
A29: Marion | B29: 127 | C29: 93043 | D29: =C29/I29 -> 0.576528178 | E29: 66831 | F29: =E29/I29 -> 0.4141091179 | G29: 1511 | H29: =G29/I29 -> 0.009362704093 | I29: 161385
A30: Lee | B30: 125 | C30: 154163 | D30: =C30/I30 -> 0.5791986956 | E30: 110157 | F30: =E30/I30 -> 0.413865783 | G30: 1846 | H30: =G30/I30 -> 0.006935521442 | I30: 266166
A31: Hamilton | B31: 8 | C31: 3138 | D31: =C31/I31 -> 0.5803587942 | E31: 2228 | F31: =E31/I31 -> 0.4120584428 | G31: 41 | H31: =G31/I31 -> 0.007582763085 | I31: 5407
A32: Lake | B32: 103 | C32: 87643 | D32: =C32/I32 -> 0.5811446115 | E32: 61799 | F32: =E32/I32 -> 0.4097778014 | G32: 1369 | H32: =G32/I32 -> 0.009077587179 | I32: 150811
A33: Glades | B33: 13 | C33: 2344 | D33: =C33/I33 -> 0.5876159438 | E33: 1603 | F33: =E33/I33 -> 0.4018551015 | G33: 42 | H33: =G33/I33 -> 0.01052895463 | I33: 3989
A34: Okeechobee | B34: 11 | C34: 7328 | D34: =C34/I34 -> 0.5946121389 | E34: 4856 | F34: =E34/I34 -> 0.394027913 | G34: 140 | H34: =G34/I34 -> 0.01135994807 | I34: 12324
A35: Escambia | B35: 79 | C35: 88711 | D35: =C35/I35 -> 0.597372426 | E35: 58185 | F35: =E35/I35 -> 0.3918129049 | G35: 1606 | H35: =G35/I35 -> 0.01081466916 | I35: 148502
A36: Citrus | B36: 31 | C36: 44662 | D36: =C36/I36 -> 0.6040711436 | E36: 28460 | F36: =E36/I36 -> 0.3849327112 | G36: 813 | H36: =G36/I36 -> 0.01099614526 | I36: 73935
A37: Indian River | B37: 37 | C37: 43450 | D37: =C37/I37 -> 0.6079984328 | E37: 27492 | F37: =E37/I37 -> 0.3846971902 | G37: 522 | H37: =G37/I37 -> 0.007304377029 | I37: 71464
A38: Martin | B38: 31 | C38: 48183 | D38: =C38/I38 -> 0.6108934616 | E38: 30107 | F38: =E38/I38 -> 0.3817149088 | G38: 583 | H38: =G38/I38 -> 0.007391629582 | I38: 78873
A39: Highlands | B39: 25 | C39: 25915 | D39: =C39/I39 -> 0.6105692206 | E39: 16148 | F39: =E39/I39 -> 0.3804542456 | G39: 381 | H39: =G39/I39 -> 0.008976533786 | I39: 42444
A40: Putnam | B40: 39 | C40: 19326 | D40: =C40/I40 -> 0.6169710126 | E40: 11667 | F40: =E40/I40 -> 0.37246201 | G40: 331 | H40: =G40/I40 -> 0.0105669774 | I40: 31324
A41: Wakulla | B41: 12 | C41: 9290 | D41: =C41/I41 -> 0.6336971351 | E41: 5175 | F41: =E41/I41 -> 0.3530013643 | G41: 195 | H41: =G41/I41 -> 0.01330150068 | I41: 14660
A42: Jackson | B42: 14 | C42: 13418 | D42: =C42/I42 -> 0.6407525906 | E42: 7342 | F42: =E42/I42 -> 0.3506040781 | G42: 181 | H42: =G42/I42 -> 0.008643331264 | I42: 20941
A43: Collier | B43: 62 | C43: 96520 | D43: =C43/I43 -> 0.6472986748 | E43: 51698 | F43: =E43/I43 -> 0.3467058319 | G43: 894 | H43: =G43/I43 -> 0.00599549332 | I43: 149112
A44: Hardee | B44: 12 | C44: 4696 | D44: =C44/I44 -> 0.6498754498 | E44: 2463 | F44: =E44/I44 -> 0.3408524772 | G44: 67 | H44: =G44/I44 -> 0.009272073069 | I44: 7226
A45: Franklin | B45: 8 | C45: 3570 | D45: =C45/I45 -> 0.652173913 | E45: 1845 | F45: =E45/I45 -> 0.3370478626 | G45: 59 | H45: =G45/I45 -> 0.01077822433 | I45: 5474
A46: Levy | B46: 13 | C46: 12054 | D46: =C46/I46 -> 0.6551443013 | E46: 6119 | F46: =E46/I46 -> 0.3325724224 | G46: 226 | H46: =G46/I46 -> 0.01228327627 | I46: 18399
A47: Sumter | B47: 24 | C47: 40646 | D47: =C47/I47 -> 0.6720679905 | E47: 19524 | F47: =E47/I47 -> 0.322822798 | G47: 309 | H47: =G47/I47 -> 0.005109211462 | I47: 60479
A48: Columbia | B48: 23 | C48: 18429 | D48: =C48/I48 -> 0.6784596694 | E48: 8462 | F48: =E48/I48 -> 0.3115267091 | G48: 272 | H48: =G48/I48 -> 0.01001362147 | I48: 27163
A49: St. Johns | B49: 46 | C49: 78513 | D49: =C49/I49 -> 0.6839409382 | E49: 35190 | F49: =E49/I49 -> 0.3065464524 | G49: 1092 | H49: =G49/I49 -> 0.009512609434 | I49: 114795
A50: Taylor | B50: 14 | C50: 6249 | D50: =C50/I50 -> 0.6851973684 | E50: 2764 | F50: =E50/I50 -> 0.3030701754 | G50: 107 | H50: =G50/I50 -> 0.01173245614 | I50: 9120
A51: Liberty | B51: 8 | C51: 2301 | D51: =C51/I51 -> 0.7006699147 | E51: 942 | F51: =E51/I51 -> 0.2868453106 | G51: 41 | H51: =G51/I51 -> 0.01248477467 | I51: 3284
A52: Bradford | B52: 14 | C52: 8219 | D52: =C52/I52 -> 0.7064030941 | E52: 3325 | F52: =E52/I52 -> 0.2857756768 | G52: 91 | H52: =G52/I52 -> 0.00782122905 | I52: 11635
A53: Gulf | B53: 9 | C53: 4995 | D53: =C53/I53 -> 0.7027293191 | E53: 2014 | F53: =E53/I53 -> 0.2833427124 | G53: 99 | H53: =G53/I53 -> 0.01392796849 | I53: 7108
A54: Bay | B54: 44 | C54: 56876 | D54: =C54/I54 -> 0.7121874257 | E54: 22051 | F54: =E54/I54 -> 0.2761172537 | G54: 934 | H54: =G54/I54 -> 0.01169532062 | I54: 79861
A55: Calhoun | B55: 15 | C55: 4366 | D55: =C55/I55 -> 0.7096879064 | E55: 1664 | F55: =E55/I55 -> 0.2704811443 | G55: 122 | H55: =G55/I55 -> 0.01983094928 | I55: 6152
A56: Suwannee | B56: 16 | C56: 12672 | D56: =C56/I56 -> 0.718815588 | E56: 4751 | F56: =E56/I56 -> 0.2694991208 | G56: 206 | H56: =G56/I56 -> 0.01168529128 | I56: 17629
A57: Clay | B57: 48 | C57: 70022 | D57: =C57/I57 -> 0.7249479754 | E57: 25759 | F57: =E57/I57 -> 0.2666866827 | G57: 808 | H57: =G57/I57 -> 0.008365341809 | I57: 96589
A58: Dixie | B58: 10 | C58: 5052 | D58: =C58/I58 -> 0.7278490131 | E58: 1798 | F58: =E58/I58 -> 0.2590404841 | G58: 91 | H58: =G58/I58 -> 0.01311050281 | I58: 6941
A59: Washington | B59: 16 | C59: 8038 | D59: =C59/I59 -> 0.7307937085 | E59: 2820 | F59: =E59/I59 -> 0.2563869443 | G59: 141 | H59: =G59/I59 -> 0.01281934721 | I59: 10999
A60: Nassau | B60: 16 | C60: 29929 | D60: =C60/I60 -> 0.7384771023 | E60: 10251 | F60: =E60/I60 -> 0.2529362416 | G60: 348 | H60: =G60/I60 -> 0.008586656139 | I60: 40528
A61: Union | B61: 11 | C61: 3980 | D61: =C61/I61 -> 0.7379936955 | E61: 1339 | F61: =E61/I61 -> 0.2482848136 | G61: 74 | H61: =G61/I61 -> 0.01372149082 | I61: 5393
A62: Okaloosa | B62: 52 | C62: 70168 | D62: =C62/I62 -> 0.7401843921 | E62: 23421 | F62: =E62/I62 -> 0.2470621743 | G62: 1209 | H62: =G62/I62 -> 0.01275343362 | I62: 94798
A63: Gilchrist | B63: 10 | C63: 5917 | D63: =C63/I63 -> 0.748135036 | E63: 1885 | F63: =E63/I63 -> 0.2383360728 | G63: 107 | H63: =G63/I63 -> 0.01352889114 | I63: 7909
A64: Walton | B64: 21 | C64: 21490 | D64: =C64/I64 -> 0.7541938654 | E64: 6671 | F64: =E64/I64 -> 0.2341194637 | G64: 333 | H64: =G64/I64 -> 0.01168667088 | I64: 28494
A65: Santa Rosa | B65: 41 | C65: 58186 | D65: =C65/I65 -> 0.757176691 | E65: 17768 | F65: =E65/I65 -> 0.2312156781 | G65: 892 | H65: =G65/I65 -> 0.01160763085 | I65: 76846
A66: Baker | B66: 9 | C66: 8975 | D66: =C66/I66 -> 0.7894968332 | E66: 2311 | F66: =E66/I66 -> 0.2032899367 | G66: 82 | H66: =G66/I66 -> 0.00721323012 | I66: 11368
A67: Lafayette | B67: 5 | C67: 2668 | D67: =C67/I67 -> 0.7849367461 | E67: 687 | F67: =E67/I67 -> 0.2021182701 | G67: 44 | H67: =G67/I67 -> 0.01294498382 | I67: 3399
A68: Holmes | B68: 8 | C68: 6919 | D68: =C68/I68 -> 0.836233986 | E68: 1264 | F68: =E68/I68 -> 0.1527677061 | G68: 91 | H68: =G68/I68 -> 0.01099830795 | I68: 8274
B69: =SUM(B2:B68) -> 6087 | C69: =SUM(C2:C68) -> 4163447 | D69: =C69/I69 -> 0.4913097776 | E69: =SUM(E2:E68) -> 4237756 | F69: =E69/I69 -> 0.5000786507 | G69: 72976 | H69: =G69/I69 -> 0.008611571693 | I69: 8474179

Sheet Romney Strongest to Weakest
A1: CountyName | B1: Precincts | C1: Romney | E1: Obama | G1: Others (16) | I1: Total
A2: Holmes | B2: 8 | C2: 6919 | D2: 0.8362 | E2: 1264 | F2: 0.1528 | G2: 91 | H2: 0.011 | I2: 8274
A3: Baker | B3: 9 | C3: 8975 | D3: 0.7895 | E3: 2311 | F3: 0.2033 | G3: 82 | H3: 0.0072 | I3: 11368
A4: Lafayette | B4: 5 | C4: 2668 | D4: 0.7849 | E4: 687 | F4: 0.2021 | G4: 44 | H4: 0.0129 | I4: 3399
A5: Santa Rosa | B5: 41 | C5: 58186 | D5: 0.7572 | E5: 17768 | F5: 0.2312 | G5: 892 | H5: 0.0116 | I5: 76846
A6: Walton | B6: 21 | C6: 21490 | D6: 0.7542 | E6: 6671 | F6: 0.2341 | G6: 333 | H6: 0.0117 | I6: 28494
A7: Gilchrist | B7: 10 | C7: 5917 | D7: 0.7481 | E7: 1885 | F7: 0.2383 | G7: 107 | H7: 0.0135 | I7: 7909
A8: Okaloosa | B8: 52 | C8: 70168 | D8: 0.7402 | E8: 23421 | F8: 0.2471 | G8: 1209 | H8: 0.0128 | I8: 94798
A9: Nassau | B9: 16 | C9: 29929 | D9: 0.7385 | E9: 10251 | F9: 0.2529 | G9: 348 | H9: 0.0086 | I9: 40528
A10: Union | B10: 11 | C10: 3980 | D10: 0.738 | E10: 1339 | F10: 0.2483 | G10: 74 | H10: 0.0137 | I10: 5393
A11: Washington | B11: 16 | C11: 8038 | D11: 0.7308 | E11: 2820 | F11: 0.2564 | G11: 141 | H11: 0.0128 | I11: 10999
A12: Dixie | B12: 10 | C12: 5052 | D12: 0.7278 | E12: 1798 | F12: 0.259 | G12: 91 | H12: 0.0131 | I12: 6941
A13: Clay | B13: 48 | C13: 70022 | D13: 0.7249 | E13: 25759 | F13: 0.2667 | G13: 808 | H13: 0.0084 | I13: 96589
A14: Suwannee | B14: 16 | C14: 12672 | D14: 0.7188 | E14: 4751 | F14: 0.2695 | G14: 206 | H14: 0.0117 | I14: 17629
A15: Bay | B15: 44 | C15: 56876 | D15: 0.7122 | E15: 22051 | F15: 0.2761 | G15: 934 | H15: 0.0117 | I15: 79861
A16: Calhoun | B16: 15 | C16: 4366 | D16: 0.7097 | E16: 1664 | F16: 0.2705 | G16: 122 | H16: 0.0198 | I16: 6152
A17: Bradford | B17: 14 | C17: 8219 | D17: 0.7064 | E17: 3325 | F17: 0.2858 | G17: 91 | H17: 0.0078 | I17: 11635
A18: Gulf | B18: 9 | C18: 4995 | D18: 0.7027 | E18: 2014 | F18: 0.2833 | G18: 99 | H18: 0.0139 | I18: 7108
A19: Liberty | B19: 8 | C19: 2301 | D19: 0.7007 | E19: 942 | F19: 0.2868 | G19: 41 | H19: 0.0125 | I19: 3284
A20: Taylor | B20: 14 | C20: 6249 | D20: 0.6852 | E20: 2764 | F20: 0.3031 | G20: 107 | H20: 0.0117 | I20: 9120
A21: St. Johns | B21: 46 | C21: 78513 | D21: 0.6839 | E21: 35190 | F21: 0.3065 | G21: 1092 | H21: 0.0095 | I21: 114795
A22: Columbia | B22: 23 | C22: 18429 | D22: 0.6785 | E22: 8462 | F22: 0.3115 | G22: 272 | H22: 0.01 | I22: 27163
A23: Sumter | B23: 24 | C23: 40646 | D23: 0.6721 | E23: 19524 | F23: 0.3228 | G23: 309 | H23: 0.0051 | I23: 60479
A24: Levy | B24: 13 | C24: 12054 | D24: 0.6551 | E24: 6119 | F24: 0.3326 | G24: 226 | H24: 0.0123 | I24: 18399
A25: Franklin | B25: 8 | C25: 3570 | D25: 0.6522 | E25: 1845 | F25: 0.337 | G25: 59 | H25: 0.0108 | I25: 5474
A26: Hardee | B26: 12 | C26: 4696 | D26: 0.6499 | E26: 2463 | F26: 0.3409 | G26: 67 | H26: 0.0093 | I26: 7226
A27: Collier | B27: 62 | C27: 96520 | D27: 0.6473 | E27: 51698 | F27: 0.3467 | G27: 894 | H27: 0.006 | I27: 149112
A28: Jackson | B28: 14 | C28: 13418 | D28: 0.6408 | E28: 7342 | F28: 0.3506 | G28: 181 | H28: 0.0086 | I28: 20941
A29: Wakulla | B29: 12 | C29: 9290 | D29: 0.6337 | E29: 5175 | F29: 0.353 | G29: 195 | H29: 0.0133 | I29: 14660
A30: Putnam | B30: 39 | C30: 19326 | D30: 0.617 | E30: 11667 | F30: 0.3725 | G30: 331 | H30: 0.0106 | I30: 31324
A31: Martin | B31: 31 | C31: 48183 | D31: 0.6109 | E31: 30107 | F31: 0.3817 | G31: 583 | H31: 0.0074 | I31: 78873
A32: Highlands | B32: 25 | C32: 25915 | D32: 0.6106 | E32: 16148 | F32: 0.3805 | G32: 381 | H32: 0.009 | I32: 42444
A33: Indian River | B33: 37 | C33: 43450 | D33: 0.608 | E33: 27492 | F33: 0.3847 | G33: 522 | H33: 0.0073 | I33: 71464
A34: Citrus | B34: 31 | C34: 44662 | D34: 0.6041 | E34: 28460 | F34: 0.3849 | G34: 813 | H34: 0.011 | I34: 73935
A35: Escambia | B35: 79 | C35: 88711 | D35: 0.5974 | E35: 58185 | F35: 0.3918 | G35: 1606 | H35: 0.0108 | I35: 148502
A36: Okeechobee | B36: 11 | C36: 7328 | D36: 0.5946 | E36: 4856 | F36: 0.394 | G36: 140 | H36: 0.0114 | I36: 12324
A37: Glades | B37: 13 | C37: 2344 | D37: 0.5876 | E37: 1603 | F37: 0.4019 | G37: 42 | H37: 0.0105 | I37: 3989
A38: Lake | B38: 103 | C38: 87643 | D38: 0.5811 | E38: 61799 | F38: 0.4098 | G38: 1369 | H38: 0.0091 | I38: 150811
A39: Hamilton | B39: 8 | C39: 3138 | D39: 0.5804 | E39: 2228 | F39: 0.4121 | G39: 41 | H39: 0.0076 | I39: 5407
A40: Lee | B40: 125 | C40: 154163 | D40: 0.5792 | E40: 110157 | F40: 0.4139 | G40: 1846 | H40: 0.0069 | I40: 266166
A41: Marion | B41: 127 | C41: 93043 | D41: 0.5765 | E41: 66831 | F41: 0.4141 | G41: 1511 | H41: 0.0094 | I41: 161385
A42: Charlotte | B42: 79 | C42: 47996 | D42: 0.5668 | E42: 35906 | F42: 0.424 | G42: 780 | H42: 0.0092 | I42: 84682
A43: Desoto | B43: 15 | C43: 5587 | D43: 0.5663 | E43: 4174 | F43: 0.4231 | G43: 104 | H43: 0.0105 | I43: 9865
A44: Brevard | B44: 166 | C44: 159300 | D44: 0.5579 | E44: 122993 | F44: 0.4307 | G44: 3266 | H44: 0.0114 | I44: 285559
A45: Manatee | B45: 113 | C45: 85627 | D45: 0.5579 | E45: 66503 | F45: 0.4333 | G45: 1361 | H45: 0.0089 | I45: 153491
A46: Hernando | B46: 39 | C46: 44938 | D46: 0.5371 | E46: 37830 | F46: 0.4521 | G46: 899 | H46: 0.0107 | I46: 83667
A47: Flagler | B47: 30 | C47: 26969 | D47: 0.533 | E47: 23207 | F47: 0.4587 | G47: 419 | H47: 0.0083 | I47: 50595
A48: Sarasota | B48: 99 | C48: 110504 | D48: 0.5326 | E48: 95119 | F48: 0.4584 | G48: 1857 | H48: 0.009 | I48: 207480
A49: Polk | B49: 167 | C49: 131577 | D49: 0.5291 | E49: 114622 | F49: 0.4609 | G49: 2484 | H49: 0.01 | I49: 248683
A50: Seminole | B50: 80 | C50: 109943 | D50: 0.527 | E50: 96445 | F50: 0.4623 | G50: 2232 | H50: 0.0107 | I50: 208620
A51: Pasco | B51: 110 | C51: 112427 | D51: 0.5264 | E51: 98263 | F51: 0.4601 | G51: 2883 | H51: 0.0135 | I51: 213573
A52: Hendry | B52: 10 | C52: 5355 | D52: 0.5258 | E52: 4751 | F52: 0.4665 | G52: 79 | H52: 0.0078 | I52: 10185
A53: Duval | B53: 197 | C53: 211615 | D53: 0.5138 | E53: 196737 | F53: 0.4777 | G53: 3496 | H53: 0.0085 | I53: 411848
A54: Madison | B54: 11 | C54: 4474 | D54: 0.5134 | E54: 4176 | F54: 0.4792 | G54: 65 | H54: 0.0075 | I54: 8715
A55: Volusia | B55: 125 | C55: 117490 | D55: 0.5009 | E55: 114748 | F55: 0.4893 | G55: 2298 | H55: 0.0098 | I55: 234536
A56: Monroe | B56: 33 | C56: 19234 | D56: 0.4925 | E56: 19404 | F56: 0.4968 | G56: 419 | H56: 0.0107 | I56: 39057
A57: Jefferson | B57: 15 | C57: 3808 | D57: 0.4877 | E57: 3945 | F57: 0.5053 | G57: 55 | H57: 0.007 | I57: 7808
A58: Pinellas | B58: 298 | C58: 213258 | D58: 0.4659 | E58: 239104 | F58: 0.5224 | G58: 5340 | H58: 0.0117 | I58: 457702
A59: Hillsborough | B59: 347 | C59: 250186 | D59: 0.4615 | E59: 286467 | F59: 0.5284 | G59: 5449 | H59: 0.0101 | I59: 542102
A60: St. Lucie | B60: 65 | C60: 56202 | D60: 0.4568 | E60: 65869 | F60: 0.5354 | G60: 956 | H60: 0.0078 | I60: 123027
A61: Palm Beach | B61: 767 | C61: 247398 | D61: 0.4118 | E61: 349651 | F61: 0.5821 | G61: 3672 | H61: 0.0061 | I61: 600721
A62: Alachua | B62: 63 | C62: 48797 | D62: 0.4052 | E62: 69699 | F62: 0.5788 | G62: 1922 | H62: 0.016 | I62: 120418
A63: Orange | B63: 227 | C63: 188589 | D63: 0.4044 | E63: 273665 | F63: 0.5868 | G63: 4105 | H63: 0.0088 | I63: 466359
A64: Miami-Dade | B64: 799 | C64: 332981 | D64: 0.3791 | E64: 541440 | F64: 0.6165 | G64: 3893 | H64: 0.0044 | I64: 878314
A65: Leon | B65: 134 | C65: 55805 | D65: 0.3762 | E65: 90881 | F65: 0.6126 | G65: 1667 | H65: 0.0112 | I65: 148353
A66: Osceola | B66: 71 | C66: 40592 | D66: 0.3734 | E66: 67239 | F66: 0.6186 | G66: 867 | H66: 0.008 | I66: 108698
A67: Broward | B67: 792 | C67: 244101 | D67: 0.3227 | E67: 508312 | F67: 0.672 | G67: 4009 | H67: 0.0053 | I67: 756422
A68: Gadsden | B68: 25 | C68: 6630 | D68: 0.2947 | E68: 15770 | F68: 0.7009 | G68: 99 | H68: 0.0044 | I68: 22499
B69: 6087 | C69: 4163447 | D69: 0.4913 | E69: 4237756 | F69: 0.5001 | G69: 72976 | H69: 0.0086 | I69: 8474179
